fUST/lending_fUST_20251206
["ID","MTS","AMOUNT","RATE_DAILY","PERIOD"]
[396405336,1764955141713,-150.0,0.00013273,10]
[396405337,1764955144123,-150.0,0.00013273,10]
[396405338,1764955147814,-150.0,0.00013273,10]
[396405339,1764955154556,-150.0,0.00013273,10]
[396405340,1764955335553,-150.0,0.00013273,10]
[396405341,1764955337036,-150.0,0.00013273,10]
[396405342,1764955338976,-150.0,0.00013273,10]
[396405343,1764955339944,-150.0,0.00013273,10]
[396405344,1764955341676,-150.0,0.00013273,10]
[396405345,1764955342534,-150.0,0.00013273,10]
[396405346,1764955343503,-150.0,0.00013273,10]
[396405347,1764955344452,-150.0,0.00013273,10]
[396405348,1764955345535,-150.0,0.00013273,10]
[396405349,1764955350800,-150.0,0.00013273,10]
[396405350,1764955354838,-150.0,0.00013273,10]
[396405351,1764955357250,-150.0,0.00013273,10]
[396405352,1764955358048,-150.0,0.00013273,10]
[396405353,1764955359328,-150.0,0.00013273,10]
[396405354,1764955407186,-150.0,0.00013273,10]
[396405355,1764955408276,-150.0,0.00013273,10]
[396405382,1764955832125,-175.0,0.000128,2]
[396405383,1764955832135,-1384.12554849,0.00012801,2]
[396405397,1764955838167,-4247.00643768,0.00012801,2]
[396405399,1764955838181,-776.68808795,0.00012801,2]
[396405401,1764955838193,-19037.16580179,0.00012801,2]
[396405404,1764955838210,-33.94186583,0.00012801,2]
[396405406,1764955838220,-300.0,0.00012801,2]
[396405408,1764955838229,-255.0,0.00012801,2]
[396405410,1764955838242,-185.69757088,0.00012801,2]
[396405412,1764955838256,-4325.36056329,0.00012802,2]
[396405416,1764955838286,-6585.4205691,0.00012802,2]
[396405680,1764955840825,-1885.98642091,0.00012802,2]
[396405682,1764955840834,-227.86213263,0.00012935,2]
[396405684,1764955840845,-205.89531154,0.00013035,2]
[396405686,1764955840855,-1000.0,0.00013272,3]
[396405688,1764955840864,-2265.14009083,0.00013273,10]
[396405690,1764955840875,-4814.67593552,0.00013273,10]
[396405692,1764955840885,-500.0,0.00013273,2]
[396405694,1764955840894,-250.52894319,0.000133,2]
[396405695,1764955840904,-391.06002226,0.000133,2]
[396405696,1764955840913,-1000.0,0.00013699,2]
[396405697,1764955840922,-500.0,0.00013699,2]
[396405698,1764955840932,-500.0,0.00013699,2]
[396405699,1764955840941,-1000.0,0.00013821,2]
[396405700,1764955840950,-28972.71250523,0.00013821,2]
[396406231,1764955846375,-219.21282529,0.00012635,2]
[396406234,1764955846385,-11150.69987969,0.00013821,2]
[396406246,1764955846497,-341.0,0.00013821,2]
[396410760,1764956296796,1546.10658949,0.000195,120]
[396410762,1764956410441,369.0,0.000112,2]
[396410791,1764957032303,-253.0,0.0001259,2]
[396410792,1764957032312,-714.1592,0.0001259,2]
[396410794,1764957032322,-691.99659256,0.00013271,3]
[396410796,1764957032334,-308.00340744,0.00013271,3]
[396410798,1764957032343,-471.99319378,0.00013272,3]
[396410804,1764957038385,-528.00680622,0.00013272,3]
[396410805,1764957038395,-300.0,0.00013272,2]
[396410806,1764957038404,-1200.0,0.00013272,2]
[396410807,1764957038414,-313.69082781,0.00013273,2]
[396410808,1764957038435,-186.30917219,0.00013273,2]
[396410809,1764957038444,-480.7740298,0.00013273,2]
[396410810,1764957038455,-19.2259702,0.00013273,2]
[396410811,1764957038464,-500.0,0.00013273,2]
[396410812,1764957038473,-500.0,0.00013273,2]
[396410813,1764957038482,-500.0,0.00013273,2]
[396410814,1764957038495,-188.40475641,0.00013273,2]
[396410815,1764957038504,-169.5458965,0.00013323,2]
[396410816,1764957038514,-255.2364216,0.00013323,2]
[396410857,1764957040626,-72.0236949,0.00013323,2]
[396410859,1764957040636,-1018.0945269,0.00013323,2]
[396410861,1764957040645,-178.1630164,0.00013323,2]
[396410863,1764957040654,-500.0,0.00013698,2]
[396410865,1764957040664,-776.123821,0.00013699,2]
[396410867,1764957040673,-500.0,0.00013699,2]
[396410869,1764957040683,-500.0,0.00013699,2]
[396410871,1764957040693,-500.0,0.0001372,2]
[396410873,1764957040702,-500.0,0.0001372,2]
[396410875,1764957040712,-500.0,0.0001372,2]
[396410877,1764957040721,-500.0,0.0001372,2]
[396410879,1764957040731,-573.42264848,0.0001372,2]
[396410881,1764957040740,-11706.57229232,0.00013721,2]
[396410966,1764957043629,-1698.76,0.00013721,2]
[396411018,1764958232531,-1034.60990598,0.00012839,2]
[396411020,1764958232543,-255.0,0.00012839,2]
[396411022,1764958232553,-187.63666128,0.00012839,2]
[396411024,1764958232564,-2.75345774,0.00012839,2]
[396411026,1764958232576,-318.21289276,0.00012839,2]
[396411028,1764958232587,-1000.0,0.00013271,3]
[396411030,1764958232597,-641.12423872,0.00013272,2]
[396411080,1764958238737,-558.87576128,0.00013272,2]
[396411081,1764958238747,-474.07269965,0.00013273,2]
[396411082,1764958238756,-411.96573467,0.00013273,2]
[396411083,1764958238766,-500.0,0.00013273,2]
[396411084,1764958238776,-300.0,0.00013574,2]
[396411085,1764958238786,-975.25444137,0.00013575,2]
[396411086,1764958238801,-1000.9999859,0.00013575,2]
[396411193,1764958240616,-4602.42058783,0.00013575,2]
[396411194,1764958240626,-176.92317307,0.00013575,2]
[396411195,1764958240645,-331.71451663,0.00013575,2]
[396411196,1764958240654,-1277.2546315,0.00013575,2]
[396411197,1764958240663,-178.1630165,0.00013575,2]
[396411198,1764958240672,-180.51759918,0.00013575,2]
[396411199,1764958240681,-168.0,0.00013611,2]
[396411200,1764958240690,-500.0,0.0001362,2]
[396411201,1764958240699,-500.0,0.0001362,2]
[396411202,1764958240708,-500.0,0.0001362,2]
[396411203,1764958240718,-580.62917149,0.0001362,2]
[396411204,1764958240726,-353.6993733,0.0001362,2]
[396411205,1764958240769,-92.71458991,0.0001362,2]
[396411206,1764958240778,-15423.16723225,0.00013621,2]
[396411207,1764958240789,-6625.0,0.00013621,2]
[396411259,1764958244584,-26958.47798422,0.00013621,2]
[396411260,1764958244596,-484.29175519,0.00013621,2]
[396411261,1764958244639,-2649.87100972,0.00013621,2]
[396411289,1764958246600,-83380.38264961,0.00013621,2]
[396411291,1764958246611,-500.0,0.00013698,2]
[396411293,1764958246621,-500.0,0.00013699,2]
[396411295,1764958246631,-164.00000005,0.00013699,2]
[396411297,1764958246640,-500.0,0.0001372,2]
[396411299,1764958246649,-500.0,0.0001372,2]
[396411301,1764958246658,-500.0,0.0001372,2]
[396411304,1764958246668,-500.0,0.0001372,2]
[396411332,1764958246922,-500.0,0.0001372,2]
[396411335,1764958246940,-500.0,0.0001372,2]
[396411337,1764958246950,-500.0,0.0001372,2]
[396411339,1764958246959,-500.0,0.0001372,2]
[396411341,1764958246968,-500.0,0.0001372,2]
[396411343,1764958246977,-500.0,0.0001372,2]
[396411345,1764958246987,-500.0,0.0001372,2]
[396411347,1764958246996,-500.0,0.0001372,2]
[396411349,1764958247005,-500.0,0.0001372,2]
[396411351,1764958247015,-500.0,0.0001372,2]
[396411353,1764958247027,-542.3489445,0.0001372,2]
[396411355,1764958247036,-1000.0,0.0001372,2]
[396411357,1764958247046,-219.0,0.00013789,2]
[396411359,1764958247055,-500.0,0.0001382,2]
[396411362,1764958247067,-500.0,0.0001382,2]
[396411364,1764958247076,-500.0,0.0001382,2]
[396411366,1764958247085,-1000.0,0.00013821,2]
[396411368,1764958247095,-188.16111617,0.00013836,3]
[396411370,1764958247105,-219.0,0.00013921,2]
[396411372,1764958247115,-309.04082314,0.00013921,2]
[396411374,1764958247125,-352.83632265,0.00013921,2]
[396411376,1764958247134,-154.18189743,0.00013921,2]
[396411378,1764958247143,-168.0,0.00013927,2]
[396411380,1764958247153,-219.0,0.00013938,2]
[396411382,1764958247163,-168.0,0.00013996,2]
[396411384,1764958247172,-168.912,0.00014015,2]
[396411386,1764958247181,-151.0,0.00014015,2]
[396411388,1764958247190,-151.0,0.00014015,2]
[396411390,1764958247200,-168.0,0.00014096,2]
[396411392,1764958247209,-13510.33198544,0.00014128,2]
[396411502,1764958482143,281.25000001,0.000211,99]
[396411582,1764959437748,-500.0,0.00013273,2]
[396411583,1764959437758,-186.88392805,0.00013273,2]
[396411584,1764959437768,-259.0,0.00013273,2]
[396411585,1764959437777,-300.0,0.0001342,2]
[396411586,1764959437787,-300.0,0.0001342,2]
[396411587,1764959437797,-300.0,0.0001342,2]
[396411588,1764959437807,-179.0,0.0001342,2]
[396411589,1764959437816,-339185.06175633,0.00013421,2]
[396411590,1764959437832,-125226.36935857,0.00013421,2]
[396411591,1764959437843,-2610.13618752,0.00013421,2]
[396411629,1764959439916,-715.74150356,0.00013421,2]
[396411935,1764959442833,-6934.852,0.00013421,2]
[396411940,1764959442948,-7934.20010005,0.00013421,2]
[396411942,1764959442957,-484.29175519,0.00013513,2]
[396411944,1764959442967,-500.0,0.00013513,2]
[396411946,1764959442976,-500.0,0.00013513,2]
[396411948,1764959442985,-278.27319557,0.00013513,2]
[396411950,1764959442994,-2312.83697232,0.00013513,2]
[396411951,1764959443003,-154.26137292,0.00013513,2]
[396411953,1764959443012,-168.912,0.00013521,2]
[396411955,1764959443022,-3054.2835807,0.00013676,2]
[396411957,1764959443031,-1795.4337523,0.00013676,2]
[396411959,1764959443040,-957.9409736,0.00013676,2]
[396411961,1764959443049,-1000.0,0.00013699,2]
[396411963,1764959443058,-500.0,0.00013699,2]
[396411965,1764959443069,-299.49955641,0.0001382,2]
[396411967,1764959443078,-527.16836782,0.00013821,2]
[396411969,1764959443087,-1000.0,0.00013835,3]
[396411971,1764959443097,-195.0,0.00013919,2]
[396411973,1764959443106,-2398.4119403,0.00014061,2]
[396411975,1764959443118,-1000.0,0.00014127,2]
[396411977,1764959443127,-229.98643282,0.00014128,2]
[396411980,1764959443139,-755.00000026,0.00014128,2]
[396412267,1764959445927,-17682.652669,0.00014128,2]
[396414998,1764960631917,-500.0,0.00013273,2]
[396414999,1764960631927,-193.76624949,0.00013273,2]
[396415000,1764960631936,-259.0,0.00013273,2]
[396415001,1764960631946,-611.59781485,0.00013318,2]
[396415003,1764960631955,-300.0,0.0001332,2]
[396415005,1764960631965,-66148.00094367,0.00013321,2]
[396415136,1764960638096,-154.93668679,0.0001332,2]
[396415137,1764960638106,-142.15105178,0.0001332,2]
[396415200,1764960640474,-357.84894822,0.0001332,2]
[396415202,1764960640484,-251.09333355,0.0001332,2]
[396415205,1764960640494,-500.0,0.0001332,2]
[396415206,1764960640504,-239.52487121,0.0001332,2]
[396415208,1764960640513,-484.87453944,0.0001332,2]
[396415567,1764960646067,-15.12546056,0.0001332,2]
[396415570,1764960646079,-500.0,0.0001332,2]
[396415572,1764960646090,-500.0,0.0001332,2]
[396415575,1764960646114,-266.47246276,0.0001332,2]
[396415578,1764960646126,-500.0,0.0001332,2]
[396415580,1764960646137,-500.0,0.0001332,2]
[396415582,1764960646149,-500.0,0.0001332,2]
[396415585,1764960646161,-500.0,0.0001332,2]
[396415587,1764960646172,-476.27124789,0.0001332,2]
[396415589,1764960646187,-13730.66800266,0.00013321,2]
[396415592,1764960646199,-247.22031363,0.00013377,2]
[396415594,1764960646211,-1669.64143747,0.0001341,2]
[396415597,1764960646227,-643.19553485,0.0001341,2]
[396415599,1764960646239,-169.896,0.00013418,2]
[396415602,1764960646251,-178.1630165,0.00013477,2]
[396415604,1764960646263,-164.38815403,0.00013544,2]
[396415606,1764960646275,-769.314661,0.00013699,2]
[396415608,1764960646287,-500.0,0.00013699,2]
[396415611,1764960646299,-1027.9910614,0.00013821,2]
[396415613,1764960646311,-1000.0,0.00013834,3]
[396415615,1764960646322,-2398.4119403,0.00013958,2]
[396415617,1764960646333,-219.0,0.00013958,2]
[396415620,1764960646345,-611.59781479,0.00014063,2]
[396415622,1764960646357,-219.0,0.00014112,2]
[396415624,1764960646369,-1000.0,0.00014127,2]
[396415626,1764960646382,-48106.79202733,0.00014128,2]
[396415631,1764960646423,-618.33521754,0.00014128,2]
[396416311,1764961832403,-300.0,0.0001322,2]
[396416314,1764961832413,-259.0,0.0001322,2]
[396416316,1764961832425,-299.12873,0.00013221,2]
[396416491,1764961838047,-500.0,0.0001322,2]
[396416492,1764961838057,-500.0,0.0001322,2]
[396416493,1764961838067,-192.38614843,0.0001322,2]
[396416494,1764961838079,-90.07213812,0.0001322,2]
[396416495,1764961838093,-500.0,0.0001322,2]
[396416496,1764961838111,-251.83027364,0.0001322,2]
[396416497,1764961838131,-659.18656908,0.00013221,2]
[396416498,1764961838156,-1417.25,0.00013221,2]
[396416499,1764961838167,-25449.2797498,0.00013221,2]
[396416500,1764961838179,-541.09,0.00013221,2]
[396416501,1764961838208,-21396.28431441,0.00013221,2]
[396416502,1764961838223,-300.1858428,0.00013221,2]
[396416567,1764961840493,-2137.96595243,0.00013221,2]
[396416568,1764961840506,-1085.31156499,0.00013221,2]
[396416569,1764961840517,-3001.14898043,0.00013221,2]
[396416570,1764961840550,-4231.89251024,0.00013221,2]
[396416590,1764961844306,-927.0,0.00013221,2]
[396416591,1764961844429,-1647.11929773,0.00013221,2]
[396416592,1764961844441,-9482.55617775,0.00013221,2]
[396416606,1764961846192,-7657.58372646,0.00013221,2]
[396416607,1764961846208,-176119.20917024,0.00013221,2]
[396416608,1764961846217,-189.8909245,0.00013281,2]
[396416609,1764961846226,-2312.83697232,0.00013368,2]
[396416610,1764961846235,-154.09430084,0.00013446,2]
[396416611,1764961846245,-247.22031363,0.00013588,2]
[396416612,1764961846254,-151.0,0.000136,2]
[396416613,1764961846263,-151.0,0.000136,2]
[396416614,1764961846273,-21185.01870636,0.00013688,2]
[396416615,1764961846303,-333.0,0.00013688,2]
[396416624,1764962244619,846.6385939,0.000211,99]
[396416753,1764963038333,-300.0,0.0001302,2]
[396416754,1764963038345,-257.0,0.0001302,2]
[396416755,1764963038355,-1009.60158843,0.00013021,2]
[396416756,1764963038465,-16612.0,0.00013021,2]
[396416805,1764963040527,-426.44039697,0.00013021,2]
[396417061,1764963043576,-3819.14115196,0.00013021,2]
[396417064,1764963043592,-4821.60298698,0.00013021,2]
[396417066,1764963043604,-4420.42477335,0.00013021,2]
[396417319,1764963046466,-2272.23679476,0.00013021,2]
[396417320,1764963046478,-18778.32132879,0.00013021,2]
[396417332,1764963046580,-25791.26866776,0.00013021,2]
[396418010,1764964232415,-189.09310601,0.00012944,2]
[396418012,1764964232425,-256.0,0.00012944,2]
[396418014,1764964232434,-174.75601503,0.0001302,2]
[396418018,1764964232456,-825.24398497,0.0001302,2]
[396418020,1764964232465,-1399.21873,0.00013027,2]
[396418022,1764964232476,-762.9964843,0.00013324,2]
[396418023,1764964232485,-300.0,0.00013594,2]
[396418025,1764964232494,-1891.9323125,0.00013595,2]
[396418205,1764964238433,-322.46275452,0.00013595,2]
[396418206,1764964238445,-836.55525642,0.00013595,2]
[396418207,1764964238487,-11935.92355807,0.00013595,2]
[396418208,1764964238500,-474.65,0.00013595,2]
[396418209,1764964238542,-703.52979223,0.00013595,2]
[396418636,1764964244974,-12316.9276199,0.00013595,2]
[396418637,1764964244985,-206.10028855,0.00013595,2]
[396418638,1764964244997,-500.0,0.00013595,2]
[396418639,1764964245007,-512.8480756,0.00013595,2]
[396418640,1764964245016,-500.0,0.00013595,2]
[396418641,1764964245026,-890000.0,0.00013596,2]
[396418642,1764964245036,-151.0,0.000136,2]
[396418643,1764964245045,-2312.83697232,0.00013687,2]
[396418644,1764964245055,-543.7869711,0.00013699,2]
[396418645,1764964245066,-730.848927,0.00013699,2]
[396418646,1764964245076,-500.0,0.00013699,2]
[396418647,1764964245086,-151.0,0.000137,2]
[396418648,1764964245096,-151.0,0.000138,2]
[396418649,1764964245106,-151.0,0.000139,2]
[396418650,1764964245116,-168.0,0.00013967,2]
[396418651,1764964245125,-151.0,0.00014,2]
[396418652,1764964245134,-170.165,0.00014079,2]
[396418653,1764964245143,-195.0,0.00014105,2]
[396418654,1764964245152,-2094.76748073,0.00014119,2]
[396418655,1764964245162,-219.0,0.0001412,2]
[396418656,1764964245172,-109375.08018111,0.00014128,2]
[396418657,1764964245182,-230.610668,0.00014128,2]
[396418658,1764964245191,-230.610668,0.00014128,2]
[396418659,1764964245201,-230.610668,0.00014128,2]
[396418660,1764964245210,-230.610668,0.00014128,2]
[396418661,1764964245219,-692.371117,0.00014128,2]
[396418662,1764964245228,-692.371117,0.00014128,2]
[396418663,1764964245237,-692.371117,0.00014128,2]
[396418664,1764964245246,-692.371117,0.00014128,2]
[396418665,1764964245257,-151.146968,0.00014128,2]
[396418666,1764964245266,-151.0,0.00014128,2]
[396418667,1764964245276,-151.0,0.00014128,2]
[396418668,1764964245285,-151.0,0.00014128,2]
[396418669,1764964245294,-195.0,0.00014128,2]
[396418670,1764964245305,-168.0,0.00014144,2]
[396418671,1764964245314,-219.0,0.00014165,2]
[396418672,1764964245323,-500.0,0.00014204,2]
[396418673,1764964245332,-195.0,0.0001421,2]
[396418674,1764964245342,-168.0,0.00014212,2]
[396418675,1764964245351,-195.0,0.00014228,2]
[396418676,1764964245361,-2398.4119403,0.00014235,2]
[396418677,1764964245370,-1000.0,0.00014247,2]
[396418678,1764964245379,-300.0,0.00014309,2]
[396418679,1764964245389,-300.0,0.00014309,2]
[396418680,1764964245398,-300.0,0.00014309,2]
[396418681,1764964245408,-300.0,0.00014309,2]
[396418682,1764964245417,-300.0,0.00014309,2]
[396418683,1764964245426,-300.0,0.00014309,2]
[396418684,1764964245436,-300.0,0.00014309,2]
[396418685,1764964245445,-300.0,0.00014309,2]
[396418686,1764964245455,-300.0,0.00014309,2]
[396418687,1764964245464,-300.0,0.00014309,2]
[396418688,1764964245474,-300.0,0.00014309,2]
[396418689,1764964245483,-300.0,0.00014309,2]
[396418690,1764964245493,-300.0,0.00014309,2]
[396418691,1764964245503,-300.0,0.00014309,2]
[396418692,1764964245512,-300.0,0.00014309,2]
[396418693,1764964245521,-159.80755542,0.00014309,2]
[396418694,1764964245530,-203.37664039,0.00014309,2]
[396418695,1764964245539,-151.0,0.00014309,2]
[396418697,1764964245548,-151.0,0.00014309,2]
[396418699,1764964245557,-500.0,0.00014309,2]
[396418701,1764964245566,-151.59839651,0.00014309,2]
[396418703,1764964245576,-500.0,0.00014309,2]
[396418705,1764964245585,-291.83867723,0.00014309,2]
[396418707,1764964245595,-168.0,0.00014344,2]
[396418709,1764964245604,-168.0,0.00014368,2]
[396418712,1764964245615,-168.0,0.00014377,2]
[396418713,1764964245624,-600.0,0.00014381,2]
[396418716,1764964245633,-219.0,0.00014403,2]
[396418718,1764964245643,-168.0,0.00014406,2]
[396418720,1764964245652,-219.0,0.00014416,2]
[396418722,1764964245662,-219.0,0.00014427,2]
[396418724,1764964245671,-151.0,0.00014446,2]
[396418726,1764964245682,-271.89614438,0.00014446,2]
[396418728,1764964245691,-500.0,0.00014446,2]
[396418730,1764964245701,-500.0,0.00014446,2]
[396418731,1764964245712,-195.0,0.00014458,2]
[396418734,1764964245722,-151.0,0.00014583,2]
[396418736,1764964245731,-500.0,0.00014583,2]
[396418738,1764964245740,-592.18562,0.00014583,2]
[396418739,1764964245749,-86544.41580769,0.0001459,2]
[396418741,1764964245759,-151.0,0.0001459,2]
[396418743,1764964245768,-151.0,0.0001459,2]
[396418745,1764964245777,-164.009641,0.0001459,2]
[396418747,1764964245786,-219.0,0.00014599,2]
[396418749,1764964245796,-168.0,0.00014697,2]
[396418751,1764964245806,-500.0,0.0001472,2]
[396418754,1764964245815,-2487.15318209,0.00014783,2]
[396418756,1764964245825,-1500.0,0.00014795,2]
[396418757,1764964245834,-500.0,0.00014857,2]
[396418759,1764964245844,-168.0,0.00014864,2]
[396418761,1764964245853,-195.0,0.0001489,2]
[396418763,1764964245863,-420.0,0.00014899,2]
[396418765,1764964245871,-223.1298651,0.00014944,2]
[396418767,1764964245881,-500.0,0.00014994,2]
[396418769,1764964245890,-1148.15278364,0.00014999,2]
[396418771,1764964245899,-786.25354205,0.00015,10]
[396418773,1764964245908,-151.0,0.00015065,2]
[396418775,1764964245918,-296.812233,0.00015065,2]
[396418777,1764964245928,-164.304607,0.00015068,2]
[396418780,1764964245938,-168.0,0.00015105,2]
[396418782,1764964245947,-500.0,0.00015131,2]
[396418784,1764964245957,-399.1865873,0.00015229,2]
[396418786,1764964245967,-500.0,0.00015268,2]
[396418788,1764964245976,-2579.17784983,0.00015331,2]
[396418790,1764964245990,-692.371117,0.00015342,2]
[396418792,1764964245999,-692.371117,0.00015342,2]
[396418794,1764964246008,-692.371117,0.00015342,2]
[396418796,1764964246018,-692.371117,0.00015342,2]
[396418798,1764964246029,-2000.0,0.00015342,2]
[396418800,1764964246039,-762.9964843,0.00015375,2]
[396418802,1764964246048,-499.99999901,0.0001538,2]
[396418804,1764964246057,-500.0,0.00015405,2]
[396418806,1764964246068,-500.0,0.00015542,2]
[396418808,1764964246079,-230.610668,0.00015613,2]
[396418810,1764964246088,-230.610668,0.00015613,2]
[396418812,1764964246097,-230.610668,0.00015613,2]
[396418814,1764964246107,-230.610668,0.00015613,2]
[396418816,1764964246119,-500.0,0.00015679,2]
[396418818,1764964246127,-151.0,0.00015679,2]
[396418820,1764964246136,-601.36888969,0.0001578,2]
[396418822,1764964246145,-1489.03,0.00015792,2]
[396418824,1764964246154,-1148.15278364,0.0001581,2]
[396418826,1764964246163,-500.0,0.00015816,2]
[396418828,1764964246173,-720.0,0.00015819,2]
[396418830,1764964246183,-199.33985,0.00015819,2]
[396418833,1764964246193,-2674.60743027,0.00015879,2]
[396418835,1764964246202,-2500.0,0.0001589,2]
[396418837,1764964246211,-500.0,0.00015953,2]
[396418839,1764964246221,-230.610668,0.0001599,2]
[396418841,1764964246230,-230.610668,0.0001599,2]
[396418843,1764964246239,-230.610668,0.0001599,2]
[396418845,1764964246249,-230.610668,0.0001599,2]
[396418847,1764964246258,-692.371117,0.0001599,2]
[396418849,1764964246267,-692.371117,0.0001599,2]
[396418851,1764964246277,-692.371117,0.0001599,2]
[396418853,1764964246288,-692.371117,0.0001599,2]
[396418856,1764964246298,-151.0,0.0001599,2]
[396418857,1764964246307,-6007.0,0.00016,2]
[396418859,1764964246317,-500.0,0.0001609,2]
[396418861,1764964246327,-151.0,0.000161,2]
[396418863,1764964246336,-500.0,0.00016227,2]
[396418865,1764964246345,-222.0,0.0001633,2]
[396418868,1764964246355,-4409.82026962,0.00016338,2]
[396418869,1764964246364,-10000.0,0.00016338,2]
[396418871,1764964246374,-500.0,0.00016364,2]
[396418874,1764964246383,-392.98324294,0.00016427,2]
[396418875,1764964246393,-2773.56790519,0.00016427,2]
[396418878,1764964246403,-500.0,0.00016438,2]
[396418880,1764964246413,-500.0,0.00016438,2]
[396418882,1764964246423,-500.0,0.00016438,2]
[396418884,1764964246434,-500.0,0.00016438,2]
[396418886,1764964246444,-500.0,0.00016438,2]
[396418888,1764964246453,-500.0,0.00016438,2]
[396418890,1764964246463,-500.0,0.00016438,2]
[396418892,1764964246473,-500.0,0.00016438,2]
[396418894,1764964246482,-500.0,0.00016438,2]
[396418896,1764964246491,-500.0,0.00016438,2]
[396418898,1764964246500,-500.0,0.00016438,2]
[396418900,1764964246509,-500.0,0.00016438,2]
[396418902,1764964246518,-500.0,0.00016438,2]
[396418904,1764964246527,-674.84,0.00016438,2]
[396418906,1764964246537,-500.0,0.00016438,2]
[396418908,1764964246546,-759.28,0.00016438,2]
[396418910,1764964246556,-512.90921609,0.00016438,2]
[396418912,1764964246565,-500.0,0.00016438,2]
[396418914,1764964246574,-821.01,0.00016438,2]
[396418916,1764964246584,-3248.83,0.00016438,2]
[396418918,1764964246594,-500.0,0.00016438,2]
[396418920,1764964246603,-500.0,0.00016438,2]
[396418922,1764964246612,-766.62,0.00016438,2]
[396418923,1764964246622,-596.14,0.00016438,2]
[396418925,1764964246633,-677.48,0.00016438,2]
[396418928,1764964246643,-500.0,0.00016438,2]
[396418930,1764964246652,-710.03,0.00016438,2]
[396418932,1764964246661,-500.0,0.00016438,2]
[396418933,1764964246671,-500.0,0.00016438,2]
[396418936,1764964246681,-978.11,0.00016438,2]
[396418938,1764964246691,-500.0,0.00016438,2]
[396418940,1764964246701,-950.77,0.00016438,2]
[396418942,1764964246711,-2195.96,0.00016438,2]
[396418944,1764964246720,-500.0,0.00016438,2]
[396418946,1764964246730,-500.0,0.00016438,2]
[396418948,1764964246739,-500.0,0.00016438,2]
[396418950,1764964246749,-831.34,0.00016438,2]
[396418952,1764964246759,-500.0,0.00016438,2]
[396418954,1764964246768,-609.85,0.00016438,2]
[396418956,1764964246777,-500.0,0.00016438,2]
[396418958,1764964246787,-1164.68,0.00016438,2]
[396418960,1764964246796,-500.0,0.00016438,2]
[396418962,1764964246805,-500.0,0.00016438,2]
[396418964,1764964246814,-768.78,0.00016438,2]
[396418966,1764964246823,-609.15,0.00016438,2]
[396418968,1764964246832,-500.0,0.00016438,2]
[396418970,1764964246841,-1330.04,0.00016438,2]
[396418972,1764964246851,-913.97,0.00016438,2]
[396418974,1764964246860,-500.0,0.00016438,2]
[396418976,1764964246870,-500.0,0.00016438,2]
[396418978,1764964246880,-500.0,0.00016438,2]
[396418980,1764964246891,-500.0,0.00016438,2]
[396418982,1764964246900,-500.0,0.00016438,2]
[396418984,1764964246909,-500.0,0.00016438,2]
[396418986,1764964246919,-500.0,0.00016438,2]
[396418988,1764964246928,-738.1,0.00016438,2]
[396418990,1764964246938,-500.0,0.00016438,2]
[396418992,1764964246948,-1071.4,0.00016438,2]
[396418994,1764964246958,-1543.99,0.00016438,2]
[396418995,1764964246967,-500.0,0.00016438,2]
[396418996,1764964246977,-465.11836449,0.00016438,2]
[396418997,1764964246991,-1862.41,0.00016438,2]
[396418998,1764964247003,-500.0,0.00016438,2]
[396418999,1764964247021,-500.0,0.00016438,2]
[396419000,1764964247039,-500.0,0.00016438,2]
[396419001,1764964247048,-500.0,0.00016438,2]
[396419003,1764964247058,-939.06,0.00016438,2]